lending/lending_fUSD_20240604
["ID","MTS","AMOUNT","RATE_DAILY","PERIOD"]
[328545696,1717517434218,-163.99,0.00029615,2]
[328545697,1717517434226,-150.0,0.00029615,2]
[328545698,1717517434233,-352.96,0.00029615,2]
[328545699,1717517434241,-843.8,0.00029615,2]
[328545700,1717517434247,-162.12168653,0.0002962,2]
[328545701,1717517434257,-7088.83844206,0.00029627,2]
[328545702,1717517434266,-1692.58660888,0.00029647,15]
[328545703,1717517434276,-217.88223365,0.00029658,2]
[328545704,1717517434288,-7088.83844206,0.00029673,2]
[328545705,1717517434298,-151.87431157,0.00029675,2]
[328545706,1717517434308,-7088.83844206,0.00029718,2]
[328545707,1717517434318,-177.68859176,0.00029726,2]
[328545708,1717517434329,-1692.58660888,0.00029731,15]
[328545709,1717517434339,-195.3159109,0.00029736,2]
[328545710,1717517434349,-166.01645137,0.00029744,2]
[328545711,1717517434358,-150.46206971,0.00029752,2]
[328545712,1717517434368,-500.0,0.0002976,2]
[328545713,1717517434377,-7088.83844206,0.00029764,2]
[328545714,1717517434387,-1695.801245,0.0002978,10]
[328545715,1717517434396,-1000.0,0.000298,10]
[328545716,1717517434406,-160.31,0.00029808,30]
[328545717,1717517434416,-7088.83844206,0.00029809,2]
[328545718,1717517434426,-1692.58660888,0.00029816,15]
[328545719,1717517434436,-150.46206971,0.0002982,2]
[328545720,1717517434446,-1000.0,0.0002982,10]
[328545721,1717517434455,-195.3159109,0.00029822,2]
[328545722,1717517434465,-1000.0,0.0002984,10]
[328545723,1717517434474,-150.46206971,0.00029846,2]
[328545724,1717517434483,-7088.83844206,0.00029855,2]
[328545725,1717517434493,-1000.0,0.0002986,10]
[328545726,1717517434502,-1000.0,0.0002988,10]
[328545727,1717517434512,-174.23448122,0.000299,2]
[328545728,1717517434521,-2009.24235392,0.000299,2]
[328545729,1717517434532,-5526.50486672,0.000299,2]
[328545730,1717517434578,-1884.55628971,0.000299,2]
[328545731,1717517434590,-2588.93884357,0.000299,2]
[328545732,1717517434600,-905.83068146,0.000299,2]
[328545733,1717517436763,24648.05541489,9.974e-05,2]
[328545768,1717517438873,-444.2256,0.00029527,2]
[328545769,1717517438885,-352.5,0.00029527,2]
[328545772,1717517439070,-1000.0,0.00029527,2]
[328545773,1717517439086,-977.55933692,0.00029527,2]
[328545775,1717517439096,-94.16931854,0.000299,2]
[328545777,1717517439105,-32.27255757,0.000299,2]
[328545780,1717517439117,-129.84912896,0.000299,2]
[328545782,1717517439127,-193.10218929,0.000299,2]
[328545784,1717517439139,-6895.73625277,0.000299,2]
[328545786,1717517439148,-165.49493539,0.000299,2]
[328545788,1717517439157,-1000.0,0.000299,10]
[328545790,1717517439166,-263.42284993,0.000299,2]
[328545792,1717517439175,-1692.58660888,0.000299,15]
[328545794,1717517439185,-15708.74365841,0.000299,2]
[328545796,1717517439194,-320.98167556,0.000299,2]
[328545798,1717517439203,-354.77596969,0.000299,2]
[328545800,1717517439212,-436.42050891,0.000299,2]
[328545802,1717517439221,-446.77321057,0.000299,2]
[328545804,1717517439230,-177.68859176,0.000299,2]
[328545806,1717517439239,-150.192,0.00029916,2]
[328545808,1717517439248,-1000.0,0.0002992,10]
[328545810,1717517439258,-333.73404673,0.00029928,2]
[328545812,1717517439267,-195.3159109,0.00029934,2]
[328545814,1717517439276,-1000.0,0.0002994,10]
[328545816,1717517439288,-211.0,0.0002995,2]
[328545818,1717517439297,-221.0,0.0002995,2]
[328545820,1717517439306,-209.0,0.0002995,2]
[328545822,1717517439315,-1000.0,0.0002996,10]
[328545824,1717517439325,-150.5,0.0002997,15]
[328545826,1717517439334,-434.0,0.0002997,15]
[328545828,1717517439343,-434.0,0.0002997,15]
[328545830,1717517439353,-320.0,0.0002997,15]
[328545832,1717517439362,-320.0,0.0002997,15]
[328545834,1717517439371,-150.5,0.0002998,15]
[328545836,1717517439380,-434.0,0.0002998,15]
[328545838,1717517439389,-434.0,0.0002998,15]
[328545840,1717517439398,-434.0,0.0002998,15]
[328545842,1717517439407,-442.0,0.0002998,15]
[328545843,1717517439416,-1000.0,0.0002998,10]
[328545845,1717517439425,-234.0,0.0002998,15]
[328545848,1717517439435,-320.0,0.0002998,15]
[328545850,1717517439444,-320.0,0.0002998,15]
[328545852,1717517439453,-320.0,0.0002998,15]
[328545854,1717517439463,-321.0,0.0002998,15]
[328545856,1717517439472,-500.0,0.00029984,6]
[328545858,1717517439482,-900.0,0.00029984,2]
[328545860,1717517439491,-7216.9097318,0.00029985,2]
[328545862,1717517439500,-2129.698174,0.00029985,2]
[328545864,1717517439509,-36300.4997383,0.00029985,2]
[328545866,1717517439518,-5114.4272824,0.00029987,2]
[328545868,1717517439527,-1700.73498,0.00029987,2]
[328545870,1717517439539,-250.37,0.00029987,10]
[328545872,1717517439547,-150.5,0.0002999,15]
[328545874,1717517439558,-434.0,0.0002999,15]
[328545876,1717517439567,-434.0,0.0002999,15]
[328545878,1717517439577,-434.0,0.0002999,15]
[328545880,1717517439587,-434.0,0.0002999,15]
[328545882,1717517439596,-150.5,0.0002999,15]
[328545884,1717517439605,-320.0,0.0002999,15]
[328545886,1717517439614,-320.0,0.0002999,15]
[328545888,1717517439624,-320.0,0.0002999,15]
[328545890,1717517439633,-320.0,0.0002999,15]
[328545892,1717517439643,-151.59,0.0002999,2]
[328545894,1717517439652,-22667.8249612,0.00029997,2]
[328545896,1717517439662,-603.03807706,0.00029998,2]
[328545898,1717517439672,-155.0,0.00029998,2]
[328545900,1717517439681,-155.0,0.00029998,2]
[328545902,1717517439690,-3048.62593934,0.00029998,2]
[328545904,1717517439700,-204.034,0.00029998,2]
[328545906,1717517439709,-168.21493625,0.00029998,2]
[328545908,1717517439719,-2332.82498739,0.00029998,2]
[328545910,1717517439728,-822.85522552,0.00029998,2]
[328545912,1717517439737,-624.74565801,0.00029998,2]
[328545914,1717517439747,-4106.4357214,0.00029998,2]
[328545916,1717517439756,-634.94381214,0.00029998,2]
[328545918,1717517439767,-789.37013607,0.00029998,2]
[328545920,1717517439776,-155.0,0.00029998,2]
[328545922,1717517439787,-29436.06707463,0.00029998,2]
[328545924,1717517439796,-863.57303464,0.00029998,3]
[328545926,1717517439805,-174.29694271,0.00029998,2]
[328545928,1717517439816,-182.852317,0.00029998,2]
[328545930,1717517439828,-155.60870247,0.00029998,2]
[328545932,1717517439838,-544.85678975,0.00029998,2]
[328545934,1717517439848,-225.04953132,0.00029998,2]
[328545936,1717517439857,-1181.55417799,0.00029998,2]
[328545938,1717517439867,-209.72951556,0.00029998,2]
[328545940,1717517439876,-1274.90079038,0.00029998,2]
[328545942,1717517439886,-6786.64428082,0.00029998,2]
[328545944,1717517439895,-325.60601034,0.00029998,2]
[328545946,1717517439907,-158.0484372,0.00029998,2]
[328545948,1717517439917,-334.86168633,0.00029998,2]
[328545950,1717517439926,-2469.9030722,0.00029998,2]
[328545952,1717517439936,-43742.24134507,0.00029998,2]
[328545954,1717517439945,-1486.22934269,0.00029998,2]
[328545956,1717517439954,-30906.43718949,0.00029998,2]
[328545958,1717517439964,-786.91222028,0.00029998,2]
[328545960,1717517439973,-268.78049174,0.00029998,2]
[328545962,1717517439983,-234.70114228,0.00029998,2]
[328545964,1717517439992,-4163.8478063,0.00029998,2]
[328545966,1717517440001,-2226.31055245,0.00029998,2]
[328545968,1717517440011,-393.8787183,0.00029998,2]
[328545969,1717517440020,-507.20044859,0.00029998,2]
[328545971,1717517440029,-411.24369396,0.00029998,2]
[328545973,1717517440040,-2053.44124277,0.00029998,2]
[328545974,1717517440048,-5000.0,0.00029998,2]
[328545975,1717517440056,-799.13494395,0.00029998,2]
[328545976,1717517440063,-9709.31553153,0.00029998,3]
[328545977,1717517440073,-155.33468874,0.00029998,2]
[328545979,1717517440082,-195.4977807,0.00029998,2]
[328545980,1717517440091,-2366.03746575,0.00029998,2]
[328545981,1717517440100,-500.0,0.00029998,6]
[328545982,1717517440110,-594.54051229,0.00029998,2]
[328545983,1717517440119,-1050.0,0.00029998,2]
[328545984,1717517440128,-1010.21483572,0.00029998,2]
[328545985,1717517440137,-185.84190201,0.00029998,2]
[328545986,1717517440147,-6253.29174589,0.00029999,2]
[328545987,1717517440156,-37621.54213862,0.00029999,2]
[328545988,1717517440165,-435.31791252,0.00029999,2]
[328545989,1717517440174,-500.0,0.00029999,6]
[328545990,1717517440183,-500.0,0.00029999,6]
[328545991,1717517440192,-500.0,0.00029999,6]
[328545992,1717517440201,-500.0,0.00029999,6]
[328545993,1717517440210,-500.0,0.00029999,6]
[328545994,1717517440220,-500.0,0.00029999,6]
[328545995,1717517440230,-500.0,0.00029999,6]
[328545996,1717517440239,-500.0,0.00029999,6]
[328545997,1717517440248,-500.0,0.00029999,6]
[328545998,1717517440257,-500.0,0.00029999,6]
[328545999,1717517440266,-500.0,0.00029999,6]
[328546000,1717517440275,-500.0,0.00029999,6]
[328546001,1717517440285,-500.0,0.00029999,6]
[328546002,1717517440294,-500.0,0.00029999,6]
[328546003,1717517440304,-324.29372833,0.00029999,6]
[328546004,1717517440313,-268.40510476,0.00029999,2]
[328546005,1717517440323,-384.46381601,0.00029999,2]
[328546006,1717517440333,-37226.96609349,0.0003,13]
[328546007,1717517440342,-150.0,0.0003,2]
[328546008,1717517440352,-975.0,0.0003,2]
[328546009,1717517440362,-2398.0,0.0003,2]
[328546010,1717517440372,-445.0,0.0003,2]
[328546011,1717517440381,-177.305,0.0003,2]
[328546012,1717517440390,-164.0,0.0003,2]
[328546013,1717517440399,-216.0,0.0003,2]
[328546014,1717517440408,-1137.0,0.0003,2]
[328546015,1717517440417,-3165.0,0.0003,2]
[328546016,1717517440427,-887197.25472341,0.0003,2]
[328546017,1717517440440,-141018.28144387,0.0003,2]
[328546018,1717517440465,-371.52481478,0.0003,2]
[328546019,1717517440476,-676.32603624,0.0003,2]
[328546020,1717517440488,-10650.07695281,0.0003,2]
[328546021,1717517440499,-17336.14545222,0.0003,2]
[328546022,1717517440510,-288.8802,0.0003,2]
[328546023,1717517440522,-1122.94407473,0.0003,2]
[328546026,1717517440993,-500.0,0.00029589,6]
[328546027,1717517441003,-510.46,0.00029589,6]
[328546028,1717517441012,-902.85900008,0.0003,2]
[328546029,1717517441254,2978.56754482,9.974e-05,2]
[328546030,1717517441545,-449.3685477,0.0003,2]
[328546031,1717517441556,-397.38,0.0003,2]
[328546032,1717517441571,-257.0,0.0003,2]
[328546033,1717517441610,-688.5619979,0.0003,2]
[328546034,1717517441621,-776.97193627,0.0003,2]
[328546035,1717517441632,-3448.685816,0.0003,2]
[328546111,1717517443408,-715.36994382,0.00029602,2]
[328546114,1717517443420,-673.3677849,0.00029602,2]
[328546117,1717517443475,-879.96203973,0.00029602,2]
[328546118,1717517443487,-262.21313809,0.00029602,2]
[328546119,1717517443498,-243.37203038,0.00029602,2]
[328546120,1717517443507,-445.19032117,0.0003,2]
[328546124,1717517443544,161.03410793,9.974e-05,2]
[328546126,1717517443557,-352.5,0.0003,2]
[328546127,1717517443568,-394.58101345,0.0003,2]
[328546128,1717517443580,-70070.64679999,0.0003,2]
[328546129,1717517443604,-1750.08934919,0.0003,2]
[328546130,1717517443620,-746.60009089,0.0003,2]
[328546131,1717517443632,-443.07349567,0.0003,2]
[328546132,1717517443644,-1014.4907433,0.0003,2]
[328546133,1717517443657,-31532.09501261,0.0003,2]
[328546134,1717517443669,-281810.56018679,0.0003,2]
[328546135,1717517443680,-1332276.81882284,0.0003,2]
[328546136,1717517443728,-241525.75101911,0.0003,2]
[328546137,1717517443740,-9623.92815387,0.0003,2]
[328546138,1717517443790,-7642.19055938,0.0003,2]
[328546139,1717517443802,-33499.65094978,0.0003,2]
[328546140,1717517443813,-9058.70789074,0.0003,2]
[328546141,1717517443851,-3220.49596999,0.0003,2]
[328546142,1717517443863,-2994.96600077,0.0003,2]
[328546143,1717517443874,-141668.00317186,0.0003,2]
[328546144,1717517443913,-3369.65,0.0003,2]
[328546296,1717517446376,-2115.948,0.00029999,2]
[328546308,1717517447290,-1039.42793457,0.00029999,2]
[328546309,1717517447303,-2017.62724224,0.00029999,2]
[328546310,1717517447315,-1128.34763278,0.00029999,2]
[328546311,1717517447327,-2720.3192434,0.00029999,2]
[328546312,1717517447336,-395.74355684,0.00029999,2]
[328546313,1717517447346,-3943.7528627,0.0003,2]
[328546314,1717517447358,-4089.24,0.0003,2]
[328546315,1717517447368,-443.94943683,0.0003,2]
[328546316,1717517447380,-466.70474391,0.0003,2]
[328546317,1717517447393,-8864.5821496,0.0003,2]
[328546318,1717517447405,-5427.18943981,0.0003,2]
[328546319,1717517447417,-47468.87589129,0.0003,2]
[328546320,1717517447428,-166900.06259201,0.0003,2]
[328546321,1717517447834,-655.0,0.0003,2]
[328546322,1717517447846,-237636.99724997,0.0003,2]
[328546323,1717517447858,-40964.10477451,0.0003,2]
[328546324,1717517447870,-31715.73820004,0.0003,2]
[328546325,1717517447881,-36001.02690477,0.0003,2]
[328546326,1717517447893,-142924.37501085,0.0003,2]
[328546327,1717517447908,-1060.14981878,0.0003,2]
[328546328,1717517447920,-1621.2205633,0.0003,2]
[328546329,1717517447932,-5826.5029811,0.0003,2]
[328546330,1717517447944,-493.77814689,0.0003,2]
[328546331,1717517455872,946.5832297,9.974e-05,2]
[328546332,1717517456750,24648.05541489,9.974e-05,2]
[328546333,1717517460231,155.0,9.974e-05,2]
[328546334,1717517474753,24648.05541489,9.974e-05,2]
[328546335,1717517494764,4580.54708111,9.974e-05,2]
[328546336,1717517571260,332040.92531248,9.974e-05,2]
[328546365,1717518024473,171.11037053,5e-05,2]
[328546366,1717518126422,150.0,5e-05,2]
[328546367,1717518126444,139.69900753,5e-05,2]
[328546368,1717518144515,150.0,5e-05,2]
[328546369,1717518144535,150.0,5e-05,2]
[328546370,1717518144555,43.1675639,5e-05,2]
[328546371,1717518150868,150.0,5e-05,2]
[328546372,1717518150901,5.51475306,5e-05,2]
[328546373,1717518157584,150.0,5e-05,2]
[328546374,1717518157607,5.0,5e-05,2]
[328546375,1717518168507,150.0,5e-05,2]
[328546376,1717518168528,139.51600348,5e-05,2]
[328546377,1717518179503,150.0,5e-05,2]
[328546378,1717518179523,5.13656754,5e-05,2]
[328546379,1717518181756,150.0,3.75e-05,2]
[328546380,1717518181778,150.0,3.75e-05,2]
[328546381,1717518181799,150.0,3.75e-05,2]
[328546382,1717518181820,150.0,3.75e-05,2]
[328546383,1717518181842,150.0,3.75e-05,2]
[328546384,1717518181864,150.0,3.75e-05,2]
[328546385,1717518181887,150.0,3.75e-05,2]
[328546386,1717518181909,241.64664957,3.75e-05,2]
[328546387,1717518181929,150.0,3.75e-05,2]
[328546388,1717518181956,1109.61358257,3.75e-05,2]
[328546405,1717518507395,6876.34513708,1e-08,7]
[328546406,1717518507426,62497.04915192,1e-08,7]
[328546407,1717518533134,-155.0,9.89e-05,2]
[328546408,1717518533160,-158.18758909,9.891e-05,2]
[328546409,1717518533184,-645.14575684,9.891e-05,2]
[328546410,1717518535127,4041.66665407,9.891e-05,2]
[328546521,1717518582341,-155.0,9.887e-05,2]
[328546522,1717518582368,-4845.0,9.888e-05,2]
[328546553,1717518631611,-155.0,9.883e-05,2]
[328546555,1717518631621,-520.675,9.883e-05,2]
[328546557,1717518631653,-1485.13198001,9.883e-05,2]
[328546558,1717518631663,-263.582379,9.884e-05,2]
[328546559,1717518631673,-1488.74285699,9.885e-05,2]
[328546560,1717518631683,-155.0,9.885e-05,2]
[328546561,1717518631692,-158.69880978,9.886e-05,2]
[328546562,1717518631704,-529.35848337,9.886e-05,2]
[328546563,1717518631714,-201.47569243,9.886e-05,2]
[328546564,1717518631723,-150.0,9.887e-05,2]
[328546565,1717518631732,-1335.70611775,9.888e-05,2]
[328546566,1717518631841,-1355.18677678,9.888e-05,2]
[328546567,1717518631850,-1390.43431935,9.888e-05,2]
[328546568,1717518631860,-241.34819951,9.888e-05,2]
[328546569,1717518631869,-4989.67787452,9.891e-05,2]
[328546570,1717518631878,-150.0,9.891e-05,2]
[328546571,1717518631888,-150.0,9.891e-05,2]
[328546572,1717518631898,-150.0,9.891e-05,2]
[328546573,1717518631907,-150.0,9.891e-05,2]
[328546574,1717518631917,-150.0,9.891e-05,2]
[328546575,1717518631926,-150.0,9.891e-05,2]
[328546576,1717518631935,-150.0,9.891e-05,2]
[328546577,1717518631944,-150.0,9.891e-05,2]
[328546578,1717518631953,-150.0,9.891e-05,2]
[328546579,1717518631963,-150.0,9.891e-05,2]
[328546580,1717518631972,-19.11234151,9.891e-05,2]
[328546581,1717518634474,-130.88765849,9.891e-05,2]
[328546583,1717518634484,-150.0,9.891e-05,2]
[328546585,1717518634494,-150.0,9.891e-05,2]
[328546587,1717518634504,-150.0,9.891e-05,2]
[328546589,1717518634513,-150.0,9.891e-05,2]
[328546591,1717518634523,-150.0,9.891e-05,2]
[328546594,1717518634533,-150.0,9.891e-05,2]
[328546597,1717518634543,-150.0,9.891e-05,2]
[328546599,1717518634554,-150.0,9.891e-05,2]
[328546601,1717518634563,-150.0,9.891e-05,2]
[328546603,1717518634573,-285.96512255,9.891e-05,2]
[328546605,1717518634583,-155.0,9.891e-05,2]
[328546607,1717518634592,-19763.89772466,9.891e-05,2]
[328546609,1717518634602,-3562.02069589,9.971e-05,2]
[328546611,1717518634612,-273.62,9.971e-05,2]
[328546613,1717518634622,-1000.0,9.973e-05,2]
[328546615,1717518634631,-422.02707389,9.974e-05,2]
[328546617,1717518634640,-5485.83699864,9.974e-05,2]
[328546619,1717518634650,-242.08245408,9.974e-05,2]
[328546621,1717518634659,-180.0617535,0.0001,2]
[328546623,1717518634669,-999.99,0.0001,2]
[328546625,1717518634678,-1577.29,0.0001,2]
[328546626,1717518634687,-210.0,0.00010876,2]
[328546627,1717518634697,-1066.6874522,0.00013961,2]
[328546629,1717518634707,-4440.12302324,0.00013962,2]
[328546631,1717518634717,-4287.57858381,0.00013963,2]
[328546633,1717518634727,-1182.36741036,0.00013969,2]
[328546634,1717518634736,-1283.17,0.00013971,2]
[328546635,1717518634746,-10076.5,0.0001399,2]
[328546636,1717518634755,-700.0,0.00014,2]
[328546637,1717518634764,-8097.6124229,0.00015,2]
[328546638,1717518634774,-751.9144439,0.00016708,2]
[328546639,1717518634783,-155.0,0.00016711,2]
[328546640,1717518634792,-179.59,0.00016712,2]
[328546641,1717518634801,-500.0,0.000185,2]
[328546642,1717518634811,-696.65702926,0.00019,2]
[328546643,1717518634820,-1000.0,0.00019986,2]
[328546644,1717518634830,-171.833,0.00019994,2]
[328546645,1717518634839,-257.69510538,0.0002,2]
[328546646,1717518634849,-1979.48660224,0.0002,2]
[328546647,1717518634859,-187.34820018,0.0002,2]
[328546648,1717518634868,-1010.45200313,0.0002,2]
[328546650,1717518634878,-6255.71829137,0.0002,2]
[328546652,1717518634887,-226.54621656,0.000201,2]
[328546654,1717518634897,-751.9144439,0.00021194,3]
[328546656,1717518634907,-487.26,0.00021296,2]
[328546658,1717518634916,-598.44,0.00021599,2]
[328546660,1717518634927,-1000.0,0.000219,2]
[328546662,1717518634936,-9021.67005299,0.00022,2]
[328546664,1717518634947,-789.68098133,0.00022,2]
[328546666,1717518634956,-706.0,0.000222,5]
[328546668,1717518634966,-250.0,0.00022495,2]
[328546670,1717518634975,-307.3,0.00022517,2]
[328546672,1717518634986,-1271.76,0.00022543,2]
[328546674,1717518634997,-179.75,0.00022815,2]
[328546676,1717518635007,-1017.89,0.00022815,2]
[328546678,1717518635017,-250.0,0.00022828,2]
[328546680,1717518635031,-150.0,0.00022829,2]
[328546682,1717518635045,-1000.0,0.00023073,2]
[328546685,1717518635055,-1336.19,0.00023078,2]
[328546686,1717518635065,-245.52,0.0002337,2]
[328546688,1717518635075,-23900.0,0.00023488,2]
[328546690,1717518635085,-275.72,0.00023519,2]
[328546692,1717518635095,-250.0,0.00023654,2]
[328546694,1717518635105,-170.7,0.00023662,2]
[328546696,1717518635114,-598.44,0.00023863,2]
[328546698,1717518635127,-161.19,0.00023918,2]
[328546701,1717518635137,-185.09,0.00024384,2]
[328546703,1717518635147,-157.71,0.00024384,2]
[328546705,1717518635158,-1000.0,0.000247,2]
[328546707,1717518635167,-180.0,0.00024787,2]
[328546708,1717518635177,-206.05,0.0002489,3]
[328546710,1717518635186,-1903.0,0.000249,2]
[328546712,1717518635196,-469.79434495,0.000249,2]
[328546714,1717518635205,-3991.43811158,0.000249,2]
[328546716,1717518635215,-6789.47504739,0.00024999,2]
[328546718,1717518635225,-168.98643813,0.00025,2]
[328546720,1717518635234,-929.30263012,0.00025,2]
[328546722,1717518635250,-1250.0,0.00025,2]
[328546724,1717518635260,-155.0,0.00025,2]
[328546726,1717518635270,-325.64160337,0.00025189,2]
[328546729,1717518635280,-173.34,0.00025191,2]
[328546731,1717518635291,-151.0,0.00025224,30]
[328546732,1717518635300,-469.79434489,0.00025456,2]
[328546735,1717518635310,-3991.43811151,0.00025456,2]
[328546736,1717518635322,-1017.89,0.00025554,2]
[328546738,1717518635331,-151.0,0.00025739,7]
[328546740,1717518635340,-1000.0,0.00025957,2]
[328546742,1717518635350,-469.79434489,0.00026011,2]
[328546744,1717518635361,-3991.43811151,0.00026011,2]
[328546746,1717518635370,-598.44,0.00026127,2]
[328546748,1717518635380,-151.0,0.00026264,4]
[328546750,1717518635390,-4647.13637462,0.00026505,2]
[328546752,1717518635399,-469.79434489,0.00026567,2]
[328546754,1717518635409,-3991.43811151,0.00026567,2]
[328546756,1717518635419,-452.89746239,0.00026698,2]
[328546758,1717518635429,-151.0,0.000268,2]
[328546759,1717518635438,-751.9104142,0.00026998,2]
[328546762,1717518635448,-3589.3922936,0.00027,2]
[328546763,1717518635458,-1300.0,0.00027,2]
[328546764,1717518635468,-469.79434489,0.00027122,2]
[328546765,1717518635478,-3991.43811151,0.00027122,2]
[328546766,1717518635488,-806.82910337,0.0002739,2]
[328546767,1717518635499,-500.0,0.000274,2]
[328546768,1717518635508,-167.02,0.00027587,2]
[328546769,1717518635520,-3825.0,0.000276,2]
[328546770,1717518635529,-469.79434489,0.00027678,2]
[328546771,1717518635539,-3991.43811151,0.00027678,2]
[328546772,1717518635549,-166.51,0.00028222,2]
[328546773,1717518635558,-299634.10671026,0.00028232,2]
[328546776,1717518637647,-3016.07364784,0.00013968,2]
[328546777,1717518637657,-7479.01668725,0.00028232,2]
[328546778,1717518637669,-308549.90946223,0.00028232,2]
[328546779,1717518637682,-13925.02199476,0.00028232,2]
[328546780,1717518637693,-404.64145571,0.00028232,2]
[328546781,1717518637705,-616.38,0.00028232,2]
[328546782,1717518637725,-18325.25883135,0.00028232,2]
[328546783,1717518637758,-41628.14674517,0.00028232,2]
[328546784,1717518637768,-469.79434489,0.00028233,2]
[328546785,1717518637777,-3991.43811151,0.00028233,2]
[328546786,1717518637787,-1017.89,0.00028294,2]
[328546787,1717518637798,-598.44,0.00028391,2]
[328546788,1717518637808,-150.0,0.00028604,2]
[328546789,1717518637818,-5504.47199308,0.00028713,2]
[328546790,1717518637829,-157.9575,0.00028772,2]
[328546791,1717518637839,-469.79434489,0.00028789,2]
[328546792,1717518637850,-3991.43811151,0.00028789,2]
[328546793,1717518637860,-400.0,0.000288,10]
[328546794,1717518638069,-151.41784713,0.00028829,2]
[328546795,1717518638080,-1000.0,0.00028829,2]
[328546796,1717518638090,-2500.0,0.00028829,2]
[328546797,1717518638099,-1000.0,0.00028841,2]
[328546798,1717518638109,-150.0,0.00028872,2]
[328546799,1717518638119,-215.64274997,0.00028882,2]
[328546800,1717518638129,-66593.3877,0.00028899,2]
[328546801,1717518638139,-800.0,0.000289,10]
[328546802,1717518638149,-500.0,0.00029,2]
[328546803,1717518638158,-507.27407036,0.00029,4]
[328546804,1717518638167,-211.17161599,0.00029,2]
[328546805,1717518638177,-4626.24984264,0.00029,5]
[328546806,1717518638186,-1350.0,0.00029,2]
[328546807,1717518638206,-766.61,0.00029,3]
[328546808,1717518638219,-1200.0,0.000291,10]
[328546809,1717518638231,-500.0,0.0002914,2]
[328546810,1717518638247,-1768.81646818,0.00029177,2]
[328546811,1717518638261,-151.41784711,0.00029186,2]
[328546812,1717518638271,-1700.0,0.000292,10]
[328546813,1717518638283,-162.12168652,0.00029277,2]
[328546814,1717518638294,-4019.90937907,0.00029277,2]
[328546815,1717518638305,-168.41883938,0.00029277,2]
[328546816,1717518638316,-42360.3773,0.00029277,2]
[328546817,1717518638327,-5126.0387,0.00029277,2]
[328546818,1717518638337,-24798.3305,0.00029277,2]
[328546819,1717518638348,-1768.81646811,0.0002928,2]
[328546820,1717518638358,-2100.0,0.000293,10]
[328546821,1717518638369,-150.0,0.00029306,2]
[328546822,1717518638380,-152.9226701,0.00029309,2]
[328546823,1717518638391,-4019.90937897,0.00029334,2]
[328546824,1717518638402,-469.79434489,0.00029344,15]
[328546825,1717518638413,-3991.43811151,0.00029344,15]
[328546826,1717518638424,-61251.7905,0.00029377,2]
[328546827,1717518638434,-100000.0,0.00029377,2]
[328546828,1717518638444,-20727.9814,0.00029377,2]
[328546829,1717518638454,-1768.81646811,0.00029384,2]
[328546830,1717518638464,-4019.90937897,0.0002939,2]
[328546831,1717518638475,-220.67729368,0.00029398,2]
[328546832,1717518638485,-400.0,0.000294,10]
[328546833,1717518638496,-154.22748096,0.00029417,2]
[328546834,1717518638508,-211.10996761,0.00029435,2]
[328546835,1717518638518,-155.48673987,0.00029436,2]
[328546836,1717518638528,-4019.90937897,0.00029447,2]
[328546837,1717518638537,-1768.81646811,0.00029487,2]
[328546838,1717518638547,-400.0,0.000295,10]
[328546839,1717518638557,-4019.90937897,0.00029504,2]
[328546840,1717518638566,-187.62942239,0.00029517,2]
[328546841,1717518638576,-301.35380907,0.00029521,2]
[328546842,1717518638586,-151.41784711,0.00029543,2]
[328546843,1717518638597,-5983.68439852,0.0002955,2]
[328546844,1717518638607,-4019.90937897,0.0002956,2]
[328546845,1717518638616,-150.70901119,0.00029573,2]
[328546846,1717518638627,-151.18071362,0.00029578,2]
[328546847,1717518638637,-154.03339596,0.00029583,2]
[328546848,1717518638647,-301.35380907,0.00029588,2]
[328546849,1717518638656,-626.6660688,0.00029589,6]
[328546850,1717518638667,-500.0,0.00029589,6]